bitfinex/quotes_BTCUSD_20260315
["timestamp","ask_amount","ask_price","bid_price","bid_amount"]
[1773533464945,0.07032655,71097.0,71084.0,0.07033733]
[1773533465154,0.02192984,71096.0,71084.0,0.07173733]
[1773533465360,0.02214985,71095.0,71084.0,0.07173733]
[1773533466298,0.02214985,71095.0,71085.0,0.0014]
[1773533466614,0.02214985,71095.0,71084.0,0.07033733]
[1773533466834,0.02214985,71095.0,71086.0,0.07033733]
[1773533470878,0.02124976,71095.0,71086.0,0.07033733]
[1773533471085,0.02106977,71095.0,71086.0,0.07033733]
[1773533471861,0.02128978,71095.0,71086.0,0.07033733]
[1773533475560,0.02128978,71095.0,71085.0,0.0014]
[1773533476327,0.02128978,71095.0,71083.0,0.07033733]
[1773533476537,0.02128978,71095.0,71085.0,0.0014]
[1773533477372,0.02128978,71095.0,71083.0,0.07033733]
[1773533477597,0.02128978,71095.0,71085.0,0.0014]
[1773533478500,0.02128978,71095.0,71085.0,0.0016]
[1773533478878,0.02128978,71095.0,71085.0,0.0002]
[1773533479082,0.02128978,71095.0,71085.0,0.0016]
[1773533480006,0.02128978,71095.0,71086.0,0.07033733]
[1773533480562,0.0014,71097.0,71086.0,0.07033733]
[1773533484322,0.09003711,71098.0,71086.0,0.18228301]
[1773533484526,0.0014,71097.0,71086.0,0.18228301]
[1773533485252,0.0014,71097.0,71088.0,0.11194568]
[1773533486258,0.00162001,71097.0,71089.0,0.11217773]
[1773533487460,0.00162001,71097.0,71090.0,0.07033338]
[1773533487631,0.0213316,71097.0,71090.0,0.07033338]
[1773533489350,0.00162001,71097.0,71090.0,0.07033338]
[1773533492204,0.07194658,71097.0,71090.0,0.07033338]
[1773533492352,0.01971159,71096.0,71089.0,0.05545391]
[1773533492555,0.01971159,71096.0,71087.0,0.07033599]
[1773533494527,0.07032843,71095.0,71087.0,0.07033599]
[1773533499287,0.07032744,71096.0,71087.0,0.07033599]
[1773533500347,0.07032744,71096.0,71085.0,0.0498593]
[1773533500948,0.07032744,71096.0,71087.0,0.07033599]
[1773533501746,0.07032744,71096.0,71082.0,0.07034129]
[1773533501899,0.07032744,71096.0,71083.0,0.0014]
[1773533502796,0.07032744,71096.0,71087.0,0.0002]
[1773533503747,0.07032744,71096.0,71087.0,0.07053552]
[1773533504379,0.07032744,71096.0,71087.0,0.0002]
[1773533504535,0.01971159,71095.0,71087.0,0.07053633]
[1773533505538,0.07032744,71096.0,71087.0,0.07053633]
[1773533508686,0.01971159,71095.0,71081.0,0.07034035]
[1773533509542,0.01971159,71095.0,71079.0,0.07194416]
[1773533509741,0.01971159,71095.0,71079.0,0.0002]
[1773533511298,0.07032942,71094.0,71079.0,0.0002]
[1773533511477,0.02049548,71093.0,71079.0,0.0002]
[1773533512011,0.02049548,71093.0,71078.0,0.0002]
[1773533513745,0.02049548,71093.0,71073.0,0.07034994]
[1773533513746,0.00489932,71079.0,71040.0,0.00034]
[1773533513878,0.0200815,71059.0,71040.0,0.00034]
[1773533514226,0.0200815,71049.0,71034.0,0.07038861]
[1773533514367,0.0200815,71047.0,71032.0,0.0014]
[1773533514571,0.0200815,71047.0,71031.0,0.07039177]
[1773533515191,0.0200815,71047.0,71030.0,0.00035187]
[1773533515399,0.04163271,71063.0,71031.0,0.02096614]
[1773533515400,0.0200815,71063.0,71031.0,0.02096614]
[1773533515626,0.0200815,71059.0,71033.0,0.01956614]
[1773533516703,0.0200815,71059.0,71034.0,0.0002]
[1773533517778,0.0200815,71057.0,71035.0,0.07038783]
[1773533517926,0.0200815,71055.0,71035.0,0.07038783]
[1773533518883,0.0200815,71055.0,71035.0,0.02834985]
[1773533519804,0.0200815,71053.0,71035.0,0.02834985]
[1773533521643,0.07036901,71057.0,71035.0,0.02834985]
[1773533521644,0.0703574,71066.0,71042.0,0.025]
[1773533521930,0.0703574,71066.0,71045.0,0.01956614]
[1773533521931,0.0703601,71064.0,71045.0,0.01956614]
[1773533522342,0.0014,71063.0,71045.0,0.01956614]
[1773533524429,0.07036109,71062.0,71046.0,0.07037693]
[1773533524626,0.07036109,71062.0,71047.0,0.01956614]
[1773533526496,0.0014,71061.0,71049.0,0.01956614]
[1773533528897,0.07036307,71060.0,71050.0,0.07037297]
[1773533529927,0.07036307,71060.0,71051.0,0.01956614]
[1773533530586,0.07176153,71062.0,71051.0,0.01956614]
[1773533530924,0.0014,71065.0,71053.0,0.01956614]
[1773533531092,0.07035779,71066.0,71053.0,0.01956614]
[1773533531285,0.0014,71065.0,71053.0,0.01956614]
[1773533531488,0.07058949,71067.0,71053.0,0.01956614]
[1773533531489,0.07058901,71067.0,71053.0,0.01956614]
[1773533531724,0.0014,71065.0,71053.0,0.01956614]
[1773533532148,0.0014,71065.0,71053.0,0.01992516]
[1773533532327,0.0002327,71067.0,71053.0,0.01992516]
[1773533532525,0.07198901,71067.0,71053.0,0.01992516]
[1773533532930,0.07198901,71067.0,71054.0,0.07036901]
[1773533533237,0.07198901,71067.0,71055.0,0.0014]
[1773533534538,0.00035179,71065.0,71055.0,0.02096614]
[1773533535226,0.00035179,71065.0,71056.0,0.07036703]
[1773533535430,0.00031179,71065.0,71056.0,0.07036703]
[1773533537780,0.0200815,71064.0,71053.0,0.00035902]
[1773533538330,0.0014,71063.0,71053.0,0.00035902]
[1773533538526,0.0200815,71062.0,71053.0,0.00035902]
[1773533539861,0.0200815,71060.0,71053.0,0.00035902]
[1773533541762,0.0200815,71060.0,71050.0,0.0002]
[1773533541763,0.09044542,71060.0,71050.0,0.0002]
[1773533541979,0.02317316,71059.0,71050.0,0.07057261]
[1773533543588,0.07036392,71060.0,71050.0,0.07057261]
[1773533545344,0.07036208,71061.0,71049.0,0.0703733]
[1773533545505,0.07036208,71061.0,71049.0,0.04250613]
[1773533546194,0.07036208,71061.0,71049.0,8.596e-05]
[1773533546530,0.18283362,71078.0,71051.0,0.202175]
[1773533546732,0.18283362,71078.0,71050.0,0.05932998]
[1773533546733,0.02317316,71075.0,71050.0,0.05932998]
[1773533546938,0.02317316,71075.0,71049.0,0.07045893]
[1773533546939,0.02317316,71073.0,71051.0,0.0014]
[1773533547095,0.02317316,71071.0,71051.0,0.0014]
[1773533547291,0.02317316,71069.0,71051.0,0.0014]
[1773533547491,0.09352831,71068.0,71052.0,0.07037099]
[1773533547810,0.00022001,71063.0,71052.0,0.07037099]
[1773533549766,0.07036109,71062.0,71052.0,0.07037099]
[1773533552635,0.02317316,71061.0,71052.0,0.07037099]
[1773533554062,0.07036109,71062.0,71052.0,0.07037099]
[1773533555213,0.07036109,71062.0,71052.0,0.07057099]
[1773533558815,0.07036109,71062.0,71050.0,0.01572066]
[1773533560390,0.09353425,71062.0,71050.0,0.01572066]
[1773533560653,0.05939575,71060.0,71044.0,0.0705789]
[1773533560775,0.16377805,71059.0,71045.0,0.07057789]
[1773533560978,0.02317316,71059.0,71045.0,0.07057789]
[1773533561180,0.16376357,71059.0,71045.0,0.07057789]
[1773533561773,0.0014,71058.0,71045.0,0.07057789]
[1773533562222,0.07036604,71057.0,71045.0,0.07057789]
[1773533562607,0.07036604,71057.0,71046.0,0.02265052]
[1773533563890,0.07036604,71057.0,71050.0,0.0002]
[1773533564591,0.00010761,71060.0,71050.0,0.0002]
[1773533567341,0.00010761,71060.0,71050.0,0.12996773]
[1773533567516,0.00010761,71060.0,71050.0,0.07057198]
[1773533567722,0.02328077,71060.0,71050.0,0.07057198]
[1773533568691,0.07036406,71059.0,71050.0,0.07057198]
[1773533568870,0.07036406,71059.0,71050.0,0.07197198]
[1773533571862,0.00010761,71060.0,71050.0,0.07197198]
[1773533572066,0.00010761,71060.0,71050.0,0.0016]
[1773533572272,0.02470521,71060.0,71047.0,0.0014]
[1773533572470,0.02610521,71060.0,71047.0,0.0014]
[1773533572678,0.02437759,71059.0,71047.0,0.0014]
[1773533572879,0.02437759,71059.0,71045.0,0.07057775]
[1773533573061,0.02437759,71059.0,71046.0,0.0014]
[1773533573390,0.02437759,71059.0,71045.0,0.07057775]
[1773533573597,0.02437759,71059.0,71045.0,0.07197775]
[1773533573906,0.07036505,71058.0,71045.0,0.07057775]
[1773533574084,0.02437759,71057.0,71046.0,0.0014]
[1773533574405,0.02437759,71057.0,71045.0,0.0002]
[1773533574652,0.02437759,71057.0,71042.0,0.0719808]
[1773533574653,0.05939575,71055.0,71033.0,0.0002]
[1773533574839,0.02437759,71049.0,71033.0,0.07058953]
[1773533575023,0.02437759,71047.0,71033.0,0.07058953]
[1773533575196,0.02437759,71045.0,71033.0,0.07058953]
[1773533575619,0.02437759,71045.0,71031.0,0.07179166]
[1773533575843,0.02437759,71045.0,71031.0,0.0002412]
[1773533575978,0.02437759,71045.0,71027.0,0.0014]
[1773533575979,0.02437759,71043.0,71027.0,0.07179548]
[1773533576317,0.21084743,71044.0,71027.0,0.07179548]
[1773533576318,0.02437759,71041.0,71027.0,0.07179548]
[1773533576518,0.21084743,71044.0,71027.0,0.07179548]
[1773533576519,0.02437759,71039.0,71027.0,0.07179548]
[1773533578355,0.07038486,71038.0,71027.0,0.07039548]
[1773533578767,0.07038486,71038.0,71025.0,0.07039754]
[1773533578768,0.02437759,71037.0,71025.0,0.07039754]
[1773533579482,0.02437759,71037.0,71023.0,0.0014]
[1773533579777,0.02437759,71037.0,71023.0,0.00010767]
[1773533581080,0.02437759,71035.0,71027.0,0.0002]
[1773533581226,0.0014,71034.0,71027.0,0.0002]
[1773533581884,0.02577759,71034.0,71027.0,0.0002]
[1773533582247,0.02577759,71034.0,71022.0,0.0001926]
[1773533582460,0.02588516,71034.0,71022.0,0.0001926]
[1773533583159,0.07038981,71033.0,71022.0,0.0001926]
[1773533583538,0.02437759,71032.0,71022.0,0.0001926]
[1773533585284,0.0703918,71031.0,71022.0,0.0001926]
[1773533593999,0.00150757,71034.0,71023.0,0.02374449]
[1773533594200,0.0014,71043.0,71023.0,0.02374449]
[1773533594405,0.0014,71043.0,71023.0,0.02385206]
[1773533594678,0.0703809,71042.0,71025.0,0.02374449]
[1773533594856,0.0717809,71042.0,71026.0,0.0014]
[1773533595034,0.0014,71041.0,71026.0,0.0014]
[1773533596015,0.001,71034.0,71026.0,0.0014]
[1773533596220,0.02437759,71036.0,71026.0,0.0014]
[1773533596621,0.02437759,71036.0,71023.0,0.0705063]
[1773533596622,0.07038783,71035.0,71025.0,0.0014]
[1773533597551,0.07038783,71035.0,71024.0,0.07039868]
[1773533597765,0.07038783,71035.0,71025.0,0.0014]
[1773533598335,0.07038783,71035.0,71025.0,0.02514449]
[1773533598745,0.07038288,71040.0,71026.0,0.07039675]
[1773533599658,0.07038288,71040.0,71027.0,0.02374449]
[1773533601239,0.07038288,71040.0,71027.0,0.09414001]
[1773533601752,0.00022001,71035.0,71027.0,0.09414001]
[1773533602849,0.07178288,71040.0,71028.0,0.02174221]
[1773533603061,0.07038288,71040.0,71028.0,0.02174221]
[1773533603602,0.07038288,71041.0,71030.0,0.02174221]
[1773533604605,0.07060289,71043.0,71030.0,0.02174221]
[1773533605406,0.21113411,71043.0,71030.0,0.02314221]
[1773533606103,0.21113411,71043.0,71032.0,0.02174221]
[1773533608086,0.21113411,71043.0,71033.0,0.07038981]
[1773533609321,0.07060289,71043.0,71033.0,0.07038981]
[1773533609864,0.07060289,71043.0,71033.0,0.09213202]
[1773533612099,0.07060289,71043.0,71033.0,0.07038981]
[1773533612602,0.07060289,71043.0,71032.0,0.07038981]
[1773533612969,0.07060289,71043.0,71031.0,0.0703918]
[1773533613789,0.07052924,71043.0,71031.0,0.0703918]
[1773533617828,0.00014636,71043.0,71031.0,0.0703918]
[1773533618237,0.00014636,71043.0,71032.0,0.02174221]
[1773533619561,0.0747802,71046.0,71032.0,0.02174221]
[1773533619763,0.07037991,71046.0,71032.0,0.02174221]
[1773533619947,0.07037991,71046.0,71034.0,0.02174221]
[1773533620136,0.07037991,71046.0,71033.0,0.07038981]
[1773533621721,0.07177991,71046.0,71033.0,0.07038981]
[1773533622147,0.07177991,71046.0,71032.0,0.07038981]
[1773533622352,0.07177991,71046.0,71032.0,0.09213202]
[1773533623782,0.07177991,71046.0,71032.0,0.07038981]
[1773533625769,0.07177991,71046.0,71032.0,0.07058981]
[1773533625968,0.07199992,71046.0,71032.0,0.07058981]
[1773533630260,0.04904056,71045.0,71032.0,0.07058981]
[1773533630661,0.07037892,71044.0,71032.0,0.07058981]
[1773533630868,0.11941948,71044.0,71032.0,0.07058981]
[1773533631037,0.04904056,71043.0,71032.0,0.07058981]
[1773533631835,0.04904056,71043.0,71033.0,0.0014]
[1773533632144,0.04904056,71043.0,71032.0,0.07058981]
[1773533632351,0.04904056,71043.0,71033.0,0.0014]
[1773533632556,0.04904056,71043.0,71032.0,0.07058981]
[1773533632764,0.04904056,71043.0,71033.0,0.0014]
[1773533635233,0.04902029,71041.0,71034.0,0.07038882]
[1773533636977,0.0703809,71042.0,71034.0,0.07038882]
[1773533637178,0.0703809,71042.0,71033.0,0.0717892]
[1773533637395,0.070575,71042.0,71033.0,0.0717892]
[1773533638046,0.070575,71042.0,71033.0,0.0703892]
[1773533638224,0.05478631,71041.0,71033.0,0.0717892]
[1773533638421,0.05498041,71041.0,71033.0,0.0717892]
[1773533639587,0.05498041,71041.0,71033.0,0.0703892]
[1773533639732,0.05498041,71041.0,71033.0,0.0717892]
[1773533640065,0.05498041,71041.0,71033.0,0.0703892]
[1773533640270,0.05498041,71041.0,71033.0,0.0717892]
[1773533641098,0.05498041,71041.0,71033.0,0.0703892]
[1773533641304,0.05498041,71041.0,71033.0,0.0717892]
[1773533642082,0.05498041,71041.0,71033.0,0.0703892]
[1773533642240,0.05498041,71041.0,71033.0,0.0717892]
[1773533643101,0.05498041,71041.0,71033.0,0.0703892]
[1773533643385,0.05498041,71041.0,71033.0,0.0717892]
[1773533643548,0.05498041,71041.0,71033.0,0.0703892]
[1773533643749,0.05498041,71041.0,71033.0,0.0717892]
[1773533644108,0.05498041,71041.0,71033.0,0.0703892]
[1773533644280,0.05498041,71041.0,71033.0,0.0717892]
[1773533645349,0.1253625,71041.0,71033.0,0.0717892]
[1773533645577,0.1253625,71041.0,71033.0,0.0703892]
[1773533645755,0.1253625,71041.0,71033.0,0.0717892]
[1773533646088,0.1253625,71041.0,71033.0,0.0703892]
[1773533646290,0.1253625,71041.0,71033.0,0.0717892]
[1773533646650,0.1253625,71041.0,71033.0,0.07163917]
[1773533646849,0.1253625,71041.0,71033.0,0.07159917]
[1773533647162,0.1253225,71041.0,71033.0,0.07159917]
[1773533647582,0.1253225,71041.0,71033.0,0.07019917]
[1773533650576,0.06062437,71040.0,71033.0,0.07019917]
[1773533651408,0.06062437,71040.0,71032.0,0.0002]
[1773533651609,0.06081847,71040.0,71032.0,0.0002]
[1773533652609,0.07038387,71039.0,71032.0,0.0002]
[1773533653319,0.07038387,71039.0,71032.0,0.07059058]
[1773533653729,0.07057797,71039.0,71032.0,0.07059058]
[1773533653925,0.13117498,71039.0,71032.0,0.07059064]
[1773533657476,0.06079111,71039.0,71032.0,0.07059064]
[1773533658203,0.0001941,71039.0,71032.0,0.07059064]
[1773533661440,0.07037112,71052.0,71032.0,0.07059064]
[1773533661588,0.07036614,71057.0,71040.0,0.05943519]
[1773533661906,0.07073391,71054.0,71041.0,0.03150077]
[1773533662111,0.00036431,71054.0,71041.0,0.03150077]
[1773533662315,0.0604972,71059.0,71044.0,0.05943519]
[1773533662316,0.07036412,71059.0,71044.0,0.05943519]
[1773533662468,0.07036412,71059.0,71041.0,0.03150077]
[1773533663615,0.07036412,71059.0,71042.0,0.0703809]
[1773533663846,0.07036412,71059.0,71046.0,0.00022001]
[1773533664036,0.07036412,71059.0,71042.0,0.0703809]
[1773533664037,0.07036412,71059.0,71047.0,0.0014]
[1773533664324,0.00022001,71054.0,71047.0,0.0014]
[1773533664997,0.00031606,71054.0,71047.0,0.0014]
[1773533666212,0.00031606,71054.0,71048.0,0.07037495]
[1773533667310,0.00031606,71054.0,71048.0,0.07022494]
[1773533673952,0.07036412,71059.0,71048.0,0.07022494]
[1773533675105,0.07058357,71060.0,71049.0,0.05940262]
[1773533676191,0.07058357,71060.0,71048.0,0.07022494]
[1773533678015,0.07058357,71060.0,71049.0,0.0014]
[1773533678243,0.07058357,71060.0,71050.0,0.07037297]
[1773533679727,0.00022001,71060.0,71050.0,0.12977559]
[1773533679900,0.07058055,71063.0,71050.0,0.12977559]
[1773533679901,0.04462039,71063.0,71050.0,0.12977559]
[1773533680104,0.01866064,71063.0,71050.0,0.12977559]
[1773533680875,0.0005718,71065.0,71050.0,0.13077559]
[1773533681071,0.07057521,71068.0,71055.0,0.05940262]
[1773533681472,0.07057521,71068.0,71050.0,0.07037297]
[1773533681473,0.07057521,71068.0,71056.0,0.0014]
[1773533683025,0.07057521,71068.0,71057.0,0.07036604]
[1773533683923,0.00022001,71063.0,71057.0,0.07036604]
[1773533685038,0.00022001,71069.0,71057.0,0.07036604]
[1773533685257,0.00022001,71069.0,71059.0,0.05940262]
[1773533686572,0.00022001,71071.0,71059.0,0.05940262]
[1773533686777,0.00034,71077.0,71059.0,0.05940262]
[1773533686778,0.05487807,71085.0,71059.0,0.05940262]
[1773533686926,0.07067302,71078.0,71068.0,0.05940262]
[1773533687132,0.07067315,71078.0,71069.0,0.0014]
[1773533687345,0.07067305,71078.0,71070.0,0.07175317]
[1773533687555,0.00032772,71078.0,71070.0,0.07175317]
[1773533691170,0.07067302,71078.0,71070.0,0.07175317]
[1773533693024,0.00032772,71078.0,71070.0,0.07175317]
[1773533695756,0.0003517,71083.0,71070.0,0.07175317]
[1773533695984,0.00071065,71083.0,71070.0,0.07175317]
[1773533696937,0.07105105,71083.0,71070.0,0.07175317]
[1773533697339,0.05490223,71082.0,71070.0,0.07175317]
[1773533697738,0.05490223,71082.0,71070.0,0.07035317]
[1773533697942,0.05490223,71082.0,71071.0,0.0014]
[1773533700544,0.05490223,71082.0,71070.0,0.12975579]
[1773533700744,0.12524361,71082.0,71071.0,0.0014]
[1773533701444,0.05490223,71082.0,71071.0,0.0014]
[1773533701835,0.12524364,71082.0,71071.0,0.0014]
[1773533703363,0.12524364,71082.0,71072.0,0.07035119]
[1773533703567,0.12546365,71082.0,71072.0,0.07035119]
[1773533704801,0.05512224,71082.0,71072.0,0.07035119]
[1773533705266,0.05512224,71082.0,71073.0,0.0014]
[1773533705466,0.05512224,71082.0,71074.0,0.0014]
[1773533705663,0.12546371,71082.0,71074.0,0.0014]
[1773533706255,0.12546368,71082.0,71074.0,0.0014]
[1773533706454,0.05512224,71082.0,71074.0,0.0014]
[1773533707188,0.12546357,71082.0,71074.0,0.0014]
[1773533707742,0.12546357,71082.0,71073.0,0.0014]
[1773533707948,0.05512224,71082.0,71073.0,0.0014]
[1773533708478,0.12546357,71082.0,71073.0,0.0014]
[1773533708682,0.05615011,71081.0,71070.0,0.0002]
[1773533708897,0.05615011,71081.0,71070.0,0.07055312]
[1773533709129,0.05615011,71081.0,71069.0,0.0014]
[1773533709355,0.05615011,71081.0,71068.0,0.0014]
[1773533709498,0.07034525,71078.0,71069.0,0.07035416]
[1773533709831,0.05535011,71077.0,71069.0,0.07035416]
[1773533711556,0.07034723,71076.0,71069.0,0.07035416]
[1773533711959,0.0014,71081.0,71069.0,0.07035416]
[1773533712294,0.00022001,71093.0,71069.0,0.07035416]
[1773533712295,0.00022001,71093.0,71072.0,0.03239706]
[1773533712423,0.00022001,71093.0,71080.0,0.05940262]
[1773533712627,0.00022001,71093.0,71081.0,0.0014]
[1773533713017,0.07073156,71096.0,71081.0,0.0014]
[1773533713658,0.05535011,71095.0,71082.0,0.07034129]
[1773533715561,0.07073156,71096.0,71082.0,0.07034129]
[1773533715562,0.00040401,71096.0,71082.0,0.07034129]
[1773533715762,0.00040401,71096.0,71086.0,0.05940262]
[1773533715991,0.00040401,71096.0,71087.0,0.0014]
[1773533716780,0.00206,71100.0,71087.0,0.0014]
[1773533716781,0.07031885,71105.0,71090.0,0.05940262]
[1773533717554,0.00022001,71103.0,71090.0,0.05940262]
[1773533718063,0.00022001,71103.0,71091.0,0.07033239]
[1773533718305,0.00039771,71103.0,71091.0,0.07033239]
[1773533721125,0.05535009,71102.0,71080.0,0.05940262]
[1773533721319,0.0014,71101.0,71081.0,0.07034129]
[1773533721536,0.05535009,71098.0,71080.0,0.07034274]
[1773533721723,0.05535009,71098.0,71081.0,0.0014]
[1773533722156,0.05535009,71098.0,71080.0,0.07034274]
[1773533722358,0.05465009,71096.0,71082.0,0.07034129]
[1773533722543,0.0014,71095.0,71082.0,0.07034129]
[1773533722745,0.05605009,71095.0,71082.0,0.07034129]
[1773533723007,0.05465009,71095.0,71082.0,0.07034129]
[1773533724678,0.07032942,71094.0,71082.0,0.07034129]
[1773533724846,0.04963767,71093.0,71082.0,0.07034129]
[1773533727392,0.0703314,71092.0,71082.0,0.07034129]
[1773533730981,0.0014,71096.0,71082.0,0.07034129]
[1773533731122,0.07032559,71098.0,71082.0,0.07034129]
[1773533732046,0.07032559,71098.0,71088.0,0.05940262]
[1773533732368,0.07032559,71098.0,71088.0,0.06080262]
[1773533733226,0.07032559,71098.0,71089.0,0.07033436]
[1773533736374,0.1202348,71099.0,71089.0,0.07033436]
[1773533736893,0.04990835,71099.0,71089.0,0.07033436]
[1773533737095,0.12023319,71099.0,71089.0,0.07033436]
[1773533737675,0.04990835,71099.0,71089.0,0.07033436]
[1773533738014,0.12023288,71099.0,71089.0,0.07033436]
[1773533738910,0.04990835,71099.0,71089.0,0.07033436]
[1773533740175,0.05012836,71099.0,71089.0,0.07033436]
[1773533740378,0.00022001,71103.0,71089.0,0.07033436]
[1773533740379,0.0705408,71103.0,71089.0,0.07033436]
[1773533740602,0.00022001,71103.0,71089.0,0.07033436]
[1773533741115,0.07054075,71103.0,71089.0,0.07033436]
[1773533741631,0.11997632,71103.0,71089.0,0.07033436]
[1773533746379,0.04965558,71103.0,71089.0,0.07033436]
[1773533749316,0.04975623,71103.0,71089.0,0.07033436]
[1773533750216,0.04975623,71103.0,71086.0,0.07033656]
[1773533750376,0.04975623,71103.0,71087.0,0.0014]
[1773533750799,0.04975623,71103.0,71086.0,0.07033656]
[1773533751004,0.04975623,71103.0,71088.0,0.0014]
[1773533751522,0.04956684,71101.0,71089.0,0.07033436]
[1773533753279,0.07032348,71100.0,71089.0,0.03462558]
[1773533753474,0.03174114,71099.0,71089.0,0.03462558]
[1773533753716,0.03174114,71099.0,71090.0,0.0014]
[1773533755660,0.07032348,71100.0,71090.0,0.07173271]
[1773533755661,0.03177097,71097.0,71090.0,0.07173271]
[1773533757139,0.03177097,71097.0,71090.0,0.0014]
[1773533757662,0.1020984,71097.0,71090.0,0.07173305]
[1773533758167,0.1020984,71097.0,71091.0,0.0014]
[1773533759501,0.1020984,71097.0,71091.0,0.07173237]
[1773533760291,0.10164548,71097.0,71091.0,0.07173237]
[1773533760529,0.03131805,71096.0,71087.0,0.07033436]
[1773533760736,0.03131805,71096.0,71088.0,0.07033535]
[1773533763928,0.07032546,71098.0,71088.0,0.07033535]
[1773533766656,0.10171901,71098.0,71088.0,0.07053535]
[1773533767732,0.03139355,71098.0,71088.0,0.07053535]
[1773533769177,0.10171958,71098.0,71088.0,0.07053535]
[1773533770348,0.10171958,71098.0,71089.0,0.0014]
[1773533770746,0.10167958,71098.0,71089.0,0.00136]
[1773533770946,0.02763478,71097.0,71090.0,0.0014]
[1773533771172,0.07032744,71096.0,71085.0,0.07033634]
[1773533771351,0.02625478,71095.0,71086.0,0.0014]
[1773533771934,0.02625478,71095.0,71087.0,0.0014]
[1773533772440,0.02625478,71095.0,71084.0,0.07173931]
[1773533773050,0.02625478,71095.0,71084.0,0.0014]
[1773533773636,0.02625478,71095.0,71085.0,0.07033832]
[1773533773637,0.0242399,71093.0,71085.0,0.07033832]
[1773533774993,0.07032942,71094.0,71085.0,0.07033832]
[1773533775321,0.02426127,71097.0,71085.0,0.07053832]
[1773533775322,0.07032661,71097.0,71085.0,0.07053832]
[1773533775510,0.02448128,71096.0,71085.0,0.07053832]
[1773533775898,0.09480895,71096.0,71085.0,0.07053832]
[1773533776215,0.02448128,71096.0,71085.0,0.07053832]
[1773533781118,0.0209458,71095.0,71085.0,0.05209218]
[1773533782114,0.0209458,71095.0,71086.0,0.0014]
[1773533782115,0.07032942,71094.0,71086.0,0.0014]
[1773533782318,0.02254412,71093.0,71083.0,0.07034019]
[1773533782514,0.02254412,71093.0,71084.0,0.0014]
[1773533783264,0.02254412,71093.0,71083.0,0.0014]
[1773533784415,0.0703314,71092.0,71085.0,0.0002]
[1773533784616,0.02300225,71091.0,71085.0,0.0002]
[1773533785923,0.02400225,71091.0,71085.0,0.0002]
[1773533789284,0.07033338,71090.0,71085.0,0.0002]
[1773533789433,0.02334764,71089.0,71085.0,0.0002]
[1773533789779,0.0699948,71092.0,71085.0,0.0002]
[1773533789959,0.09253892,71092.0,71085.0,0.0002]
[1773533791135,0.02254412,71094.0,71085.0,0.0002]
[1773533792050,0.001,71089.0,71085.0,0.0002]
[1773533792252,0.02254412,71094.0,71085.0,0.0002]
[1773533792658,0.02354412,71094.0,71085.0,0.0002]
[1773533792860,0.02254412,71094.0,71085.0,0.0002]
[1773533793559,0.07033041,71093.0,71085.0,0.0002]
[1773533793758,0.02254412,71092.0,71085.0,0.0002]
[1773533793980,0.02254412,71092.0,71077.0,0.0002]
[1773533794176,0.02254412,71092.0,71080.0,0.0014]
[1773533796304,0.07033239,71091.0,71080.0,0.07174271]
[1773533796505,0.02254412,71090.0,71080.0,0.07034271]
[1773533796718,0.02254412,71090.0,71081.0,0.0014]
[1773533798828,0.02254412,71088.0,71081.0,0.0016]
[1773533799467,0.0223641,71088.0,71081.0,0.0016]
[1773533801118,0.09270041,71088.0,71081.0,0.0016]
[1773533802142,0.07033239,71091.0,71081.0,0.07194215]
[1773533802300,0.07033338,71090.0,71081.0,0.07194215]
[1773533803606,0.07032606,71098.0,71081.0,0.07194225]
[1773533803607,0.02254412,71094.0,71081.0,0.07194225]
[1773533805302,0.02254412,71094.0,71081.0,0.0002]
[1773533805480,0.02254412,71094.0,71073.0,0.0002]
[1773533805481,0.02254412,71090.0,71074.0,0.0017681]
[1773533805680,0.02254412,71088.0,71074.0,0.0017681]
[1773533806192,0.02254412,71088.0,71074.0,0.07211703]
[1773533809370,0.07033634,71087.0,71074.0,0.07071703]
[1773533809745,0.07015628,71087.0,71074.0,0.07071703]
[1773533810264,0.0014,71086.0,71074.0,0.07071703]
[1773533811973,0.07033832,71085.0,71074.0,0.0003681]
[1773533812306,0.02213908,71084.0,71073.0,0.0002]
[1773533812436,0.02213908,71084.0,71074.0,0.0002]
[1773533812437,0.021959,71084.0,71074.0,0.0002]
[1773533812839,0.021959,71084.0,71073.0,0.0002]
[1773533814171,0.02213908,71082.0,71073.0,0.07055016]
[1773533814748,0.0014,71081.0,71073.0,0.07055016]
[1773533815211,0.0014,71081.0,71067.0,0.07208723]
[1773533815212,0.02213908,71080.0,71067.0,0.07068686]
[1773533815510,0.022235,71080.0,71067.0,0.07068686]
[1773533816105,0.07034426,71079.0,71067.0,0.07068686]
[1773533816310,0.02213908,71078.0,71067.0,0.07068686]
[1773533818913,0.07034624,71077.0,71067.0,0.07068686]
[1773533819242,0.09248532,71077.0,71067.0,0.07068686]
[1773533820214,0.07034624,71077.0,71067.0,0.07068686]
[1773533821051,9.592e-05,71080.0,71067.0,0.07068686]
[1773533821052,9.592e-05,71080.0,71068.0,0.02092105]
[1773533821254,0.0014,71083.0,71068.0,0.02232105]
[1773533821430,0.00035889,71083.0,71068.0,0.02232105]
[1773533821803,0.00035889,71083.0,71068.0,0.0014]
[1773533822045,0.0014,71082.0,71068.0,0.0014]
[1773533825233,0.0014,71082.0,71069.0,0.07035416]
[1773533825234,0.07034228,71081.0,71069.0,0.07035416]
[1773533828223,0.07034228,71081.0,71070.0,0.05934619]
[1773533830392,0.07034228,71081.0,71071.0,0.07035218]
[1773533831742,0.02213908,71080.0,71068.0,0.0002]
[1773533832900,0.02213908,71078.0,71062.0,0.0002]
[1773533833106,0.02213908,71078.0,71062.0,0.07056065]
[1773533834721,0.02213908,71078.0,71056.0,0.00025]
[1773533834722,0.0001312,71078.0,71056.0,0.00025]
[1773533834906,0.02213908,71075.0,71056.0,0.00025]
[1773533835535,0.07034723,71076.0,71053.0,0.0002]
[1773533835536,0.05934619,71070.0,71053.0,0.0002]
[1773533835708,0.02213908,71068.0,71053.0,0.0002]
[1773533835915,0.02213908,71066.0,71052.0,0.0001312]
[1773533836314,0.02213908,71066.0,71052.0,0.00058]
[1773533836943,0.02213908,71066.0,71048.0,0.0709266]
[1773533836944,0.07035812,71065.0,71048.0,0.00055179]
[1773533837097,0.02213908,71064.0,71048.0,0.00055179]
[1773533837495,0.07175812,71065.0,71051.0,0.02092105]
[1773533838115,0.0014,71064.0,71051.0,0.02092105]
[1773533839474,0.0703601,71063.0,71052.0,0.07037099]
[1773533841230,0.06999993,71063.0,71052.0,0.07037099]
[1773533841557,0.06981982,71063.0,71052.0,0.07037099]
[1773533843343,0.11228895,71082.0,71055.0,0.02196407]
[1773533843344,0.0014,71073.0,71055.0,0.02196407]
[1773533843667,0.00121988,71074.0,71061.0,0.02196407]
[1773533843874,0.0001316,71080.0,71061.0,0.02196407]
[1773533844186,0.0014,71079.0,71061.0,0.02196407]
[1773533845509,0.07034525,71078.0,71062.0,0.09232516]
[1773533846878,0.07034525,71078.0,71062.0,0.09252516]
[1773533847597,0.07034525,71078.0,71063.0,0.02196407]